bitfinex-derivatives/quotes_SOLF0:USTF0_20240918
["timestamp","ask_amount","ask_price","bid_price","bid_amount"]
[1726683269291,38.39,130.41,130.29,38.39]
[1726683269797,38.39,130.39,130.26,38.39]
[1726683269999,42.24279751,130.39,130.26,38.39]
[1726683270192,38.39,130.41,130.26,38.39]
[1726683270397,38.39,130.41,130.3,38.39]
[1726683270802,3.8345,130.38,130.32,3.836]
[1726683271297,38.39,130.41,130.31,3.8364]
[1726683271506,38.39,130.39,130.28,38.39]
[1726683272391,3.835,130.36,130.31,3.8362]
[1726683272596,38.39,130.39,130.28,38.39]
[1726683272898,38.39,130.41,130.3,38.39]
[1726683273095,38.39,130.43,130.3,38.39]
[1726683273398,38.39,130.43,130.35,3.8352]
[1726683273705,38.39,130.43,130.32,38.39]
[1726683274304,4.3471,130.45,130.32,38.39]
[1726683274604,42.7371,130.45,130.32,38.39]
[1726683275208,42.7371,130.45,130.34,38.39]
[1726683275505,3.8326,130.44,130.4,3.8337]
[1726683275893,4.3471,130.45,130.37,38.39]
[1726683276095,2.8732,130.45,130.42,3.8331]
[1726683276306,38.39,130.49,130.39,38.39]
[1726683276499,3.832,130.46,130.42,3.8329]
[1726683276696,38.39,130.49,130.39,38.39]
[1726683277102,38.39,130.51,130.39,38.39]
[1726683277809,4.4967,130.52,130.41,38.39]
[1726683278019,4.4967,130.52,130.33,191.93]
[1726683278020,2.9965,130.52,130.45,38.39]
[1726683278212,38.39,130.6,130.47,38.39]
[1726683278213,42.7667,130.59,130.47,38.39]
[1726683278420,4.3767,130.59,130.5,38.39]
[1726683278913,2.8765,130.59,130.5,38.39]
[1726683279119,6.7047,130.59,130.53,3.8296]
[1726683279306,2.8765,130.59,130.5,38.39]
[1726683279509,41.2665,130.59,130.48,38.39]
[1726683280415,38.39,130.57,130.45,191.93]
[1726683281718,2.8765,130.59,130.47,38.39]
[1726683283216,2.8765,130.59,130.5,38.39]
[1726683283819,3.8292,130.56,130.5,38.39]
[1726683284020,2.8765,130.59,130.5,38.39]
[1726683284314,2.8765,130.59,130.41,153.42]
[1726683284520,38.39,130.55,130.43,38.39]
[1726683284820,3.8302,130.52,130.46,3.8319]
[1726683285021,38.39,130.55,130.43,38.39]
[1726683285212,38.39,130.5,130.33,139.78034544]
[1726683285420,38.39,130.5,130.38,38.39]
[1726683285619,42.27258227,130.53,130.41,38.39]
[1726683285919,3.8312,130.49,130.43,3.8328]
[1726683286119,38.39,130.51,130.41,38.39]
[1726683286315,38.39,130.53,130.4,38.39]
[1726683287523,38.39,130.53,130.42,38.39]
[1726683287711,3.8313,130.49,130.43,3.8326]
[1726683287917,38.39,130.51,130.4,38.39]
[1726683288419,3.8322,130.46,130.4,3.8336]
[1726683288718,38.39,130.45,130.32,153.42]
[1726683288925,38.39,130.45,130.33,38.39]
[1726683289124,38.39,130.42,130.33,38.39]
[1726683289322,3.8332,130.42,130.36,3.8347]
[1726683289625,1.4163,130.46,130.35,38.39]
[1726683290018,1.4163,130.46,130.38,3.8341]
[1726683290216,1.4163,130.46,130.39,38.39]
[1726683290420,41.237,130.5,130.41,3.8334]
[1726683290722,41.237,130.5,130.39,38.39]
[1726683290922,3.8314,130.48,130.42,3.8331]
[1726683291117,2.847,130.5,130.41,38.39]
[1726683291425,3.8314,130.48,130.41,38.39]
[1726683291625,2.847,130.5,130.39,38.39]
[1726683291921,41.237,130.5,130.39,38.39]
[1726683292122,2.847,130.5,130.39,38.39]
[1726683293124,6.678,130.5,130.43,3.8327]
[1726683293429,2.847,130.5,130.43,38.39]
[1726683293619,6.6779,130.5,130.43,42.2226]
[1726683293814,2.847,130.5,130.43,38.39]
[1726683294519,39.8063,130.54,130.43,38.39]
[1726683295026,1.4163,130.54,130.45,38.39]
[1726683295321,3.8298,130.54,130.48,3.8313]
[1726683295624,41.3964,130.59,130.47,38.39]
[1726683295826,3.8311,130.49,130.43,38.39]
[1726683296123,38.39,130.56,130.45,38.39]
[1726683296321,42.2646125,130.56,130.46,3.8319]
[1726683296525,38.39,130.54,130.43,38.39]
[1726683296824,3.8313,130.49,130.43,3.8326]
[1726683297019,38.39,130.52,130.41,38.39]
[1726683299022,1.4407,130.53,130.43,38.39]
[1726683299626,3.8316,130.48,130.42,3.8329]
[1726683300028,38.39,130.52,130.42,3.8329]
[1726683300327,2.9493,130.51,130.45,38.39]
[1726683300528,42.28063014,130.56,130.45,38.39]
[1726683300728,3.8305,130.51,130.45,38.39]
[1726683301028,42.28063014,130.56,130.45,38.39]
[1726683301029,38.39,130.56,130.45,38.39]
[1726683301232,38.39,130.54,130.42,38.39]
[1726683301619,38.39,130.56,130.45,38.39]
[1726683301822,38.39,130.56,130.49,3.8309]
[1726683302023,39.8595,130.58,130.47,38.39]
[1726683302222,3.8312,130.49,130.43,38.39]
[1726683302530,39.8595,130.58,130.41,38.39]
[1726683302531,38.39,130.52,130.41,38.39]
[1726683302728,3.8319,130.47,130.39,38.39]
[1726683302925,3.8319,130.47,130.35,153.38]
[1726683302926,1.5188,130.51,130.41,38.39]
[1726683303326,3.8317,130.48,130.41,38.39]
[1726683303529,1.5188,130.51,130.42,3.833]
[1726683303727,1.5188,130.51,130.41,38.39]
[1726683303934,1.5188,130.51,130.39,38.39]
[1726683303935,1.5188,130.51,130.45,38.39]
[1726683304132,38.39,130.56,130.45,38.39]
[1726683304133,42.27709399,130.56,130.45,38.39]
[1726683304328,3.8301,130.53,130.45,38.39]
[1726683304633,3.8301,130.53,130.47,3.8315]
[1726683304830,3.8303,130.52,130.45,38.39]
[1726683305132,1.4366,130.57,130.47,38.39]
[1726683305336,1.4695,130.58,130.51,38.39]
[1726683305833,1.4695,130.58,130.49,42.2209]
[1726683306030,1.4695,130.58,130.47,38.39]
[1726683306434,2.8925,130.62,130.51,38.39]
[1726683306635,2.8925,130.62,130.53,38.39]
[1726683307137,39.7869,130.65,130.55,38.39]
[1726683307138,3.827,130.63,130.55,38.39]
[1726683307333,1.3969,130.65,130.58,3.8284]
[1726683307543,1.3969,130.65,130.55,38.39]
[1726683307738,1.3969,130.65,130.53,38.39]
[1726683307739,39.7869,130.65,130.53,38.39]
[1726683309427,39.7869,130.65,130.58,3.8282]
[1726683309634,3.827,130.63,130.58,3.8282]
[1726683309937,1.3969,130.65,130.6,3.8276]
[1726683310134,5.2236,130.65,130.57,38.39]
[1726683310335,38.39,130.69,130.57,38.39]
[1726683310546,38.39,130.69,130.61,3.8273]
[1726683310733,3.8263,130.66,130.61,3.8273]
[1726683311143,3.8264,130.65,130.57,38.39]
[1726683311649,5.23094918,130.7,130.59,38.39]
[1726683312238,5.23094918,130.7,130.61,3.8274]
[1726683312550,5.23094918,130.7,130.59,38.39]
[1726683312747,5.23094918,130.7,130.52,38.39]
[1726683312748,5.23094918,130.7,130.62,38.39]
[1726683313042,3.90837876,130.79,130.66,38.39]
[1726683313343,3.90837876,130.79,130.69,38.39]
[1726683313344,4.4105,130.77,130.69,38.39]
[1726683313637,4.4105,130.77,130.66,38.39]
[1726683313638,42.8005,130.77,130.66,38.39]
[1726683313845,38.39,130.76,130.64,38.39]
[1726683314141,38.39,130.76,130.59,38.39]
[1726683314142,4.4105,130.77,130.69,38.39]
[1726683314344,4.4105,130.77,130.71,3.8246]
[1726683314650,3.8234,130.76,130.69,38.39]
[1726683314833,2.9924,130.77,130.71,38.39]
[1726683315034,3.90359091,130.79,130.73,38.39]
[1726683315245,41.3716,130.85,130.73,38.39]
[1726683315441,3.8228,130.78,130.73,38.39]
[1726683315747,3.87565071,130.79,130.74,3.8235]
[1726683316043,3.87565071,130.79,130.76,38.39]
[1726683316447,3.87565071,130.79,130.76,42.2131]
[1726683316640,2.9816,130.85,130.76,42.2131]
[1726683317045,3.822,130.81,130.76,42.2131]
[1726683317249,2.9816,130.85,130.78,38.39]
[1726683317448,3.8213,130.83,130.78,38.39]
[1726683317746,2.9816,130.85,130.78,38.39]
[1726683317935,3.8212,130.83,130.78,38.39]
[1726683318245,7.6328,131.0,130.8,38.39]
[1726683318446,2.8247,130.91,130.8,38.39]
[1726683318649,6.71681266,130.91,130.8,38.39]
[1726683319552,6.71681266,130.91,130.82,38.39]
[1726683319940,2.8247,130.91,130.82,38.39]
[1726683320447,38.39,130.9,130.8,42.212]
[1726683320642,38.39,130.86,130.68,153.12]
[1726683320842,38.39,130.83,130.7,38.39]
[1726683321041,4.2923,130.82,130.7,38.39]
[1726683321249,38.39,130.79,130.66,38.39]
[1726683321441,38.39,130.81,130.69,38.39]
[1726683321648,38.39,130.79,130.66,38.39]
[1726683322146,38.39,130.81,130.66,38.39]
[1726683322344,3.8227,130.78,130.72,3.8242]
[1726683322547,38.39,130.81,130.7,38.39]
[1726683322751,38.39,130.77,130.66,38.39]
[1726683322946,38.39,130.77,130.64,38.39]
[1726683323350,38.39,130.79,130.66,38.39]
[1726683323549,3.8237,130.75,130.7,3.8247]
[1726683323749,3.8237,130.75,130.66,38.39]
[1726683323750,3.8237,130.75,130.69,38.39]
[1726683324043,3.8226,130.78,130.71,38.39]
[1726683324250,38.39,130.81,130.71,38.39]
[1726683324451,38.39,130.81,130.66,38.39]
[1726683324651,38.39,130.81,130.7,38.39]
[1726683324956,38.39,130.81,130.62,153.12]
[1726683325147,38.39,130.79,130.68,38.39]
[1726683325349,4.2923,130.82,130.71,38.39]
[1726683325565,3.8222,130.8,130.73,38.39]
[1726683325853,8.05608463,130.82,130.73,38.39]
[1726683326551,4.2923,130.82,130.73,38.39]
[1726683326768,3.8225,130.79,130.75,3.8233]
[1726683326958,4.2923,130.82,130.73,38.39]
[1726683327254,4.2923,130.82,130.76,3.8229]
[1726683327646,2.9043,130.82,130.75,38.39]
[1726683327851,2.9043,130.82,130.73,38.39]
[1726683328760,38.39,130.79,130.7,3.8247]
[1726683328954,38.39,130.79,130.66,191.47]
[1726683329152,38.39,130.79,130.68,38.39]
[1726683329347,2.9043,130.82,130.73,38.39]
[1726683329549,2.9043,130.82,130.75,38.39]
[1726683329759,38.39,130.89,130.77,38.39]
[1726683330057,1.4199,130.88,130.77,38.39]
[1726683330360,1.4199,130.88,130.82,38.39]
[1726683330551,1.4361,130.89,130.84,38.39]
[1726683330753,1.4199,130.93,130.84,38.39]
[1726683330956,2.856,130.93,130.84,38.39]
[1726683332247,2.856,130.93,130.79,38.39]
[1726683332248,2.856,130.93,130.82,38.39]
[1726683332458,2.856,130.93,130.74,160.7071]
[1726683332459,38.39,130.9,130.78,38.39]
[1726683332957,2.856,130.93,130.78,38.39]
[1726683333162,2.856,130.93,130.85,38.39]
[1726683333571,2.856,130.93,130.83,38.39]
[1726683333861,2.856,130.93,130.78,38.39]
[1726683333862,2.856,130.93,130.85,38.39]
[1726683334052,2.856,130.93,130.88,3.8195]
[1726683334251,2.856,130.93,130.85,38.39]
[1726683334468,2.856,130.93,130.88,3.8196]
[1726683334760,2.856,130.93,130.85,38.39]
[1726683334965,2.856,130.93,130.78,345.3286]
[1726683334966,6.6743,130.93,130.87,38.39]
[1726683335261,38.39,131.02,130.89,38.39]
[1726683335460,38.39,131.0,130.89,38.39]
[1726683335651,4.3537,131.01,130.89,38.39]
[1726683336052,4.3537,131.01,130.85,38.39]
[1726683336053,4.3537,131.01,130.92,38.39]
[1726683336657,3.8165,130.99,130.95,3.8174]
[1726683336960,4.3537,131.01,130.92,38.39]
[1726683337265,4.3537,131.01,130.85,38.39]
[1726683337266,2.9027,131.01,130.94,38.39]
[1726683337650,3.8163,131.0,130.96,3.8171]
[1726683337856,2.9027,131.01,130.94,38.39]
[1726683338154,38.39,131.07,130.94,38.39]
[1726683338459,2.9373,131.06,130.94,38.39]
[1726683338761,38.39,131.05,130.94,38.39]
[1726683338964,38.39,131.05,130.85,38.39]
[1726683338965,38.39,131.05,130.91,38.39]
[1726683339769,38.39,131.02,130.92,3.8183]
[1726683340064,38.39,131.02,130.91,38.39]
[1726683340257,38.39,131.02,130.95,3.8176]
[1726683340258,3.8166,130.99,130.95,3.8176]
[1726683340454,38.39,131.02,130.91,38.39]
[1726683340855,38.39,131.02,130.93,3.818]
[1726683341252,3.8164,131.0,130.93,3.818]
[1726683341458,38.39,131.05,130.91,38.39]
[1726683341656,38.39,131.05,130.93,38.39]
[1726683341962,2.9373,131.06,130.96,38.39]
[1726683343065,2.9373,131.06,130.87,7.6398]
[1726683343367,38.39,131.05,130.94,38.39]
[1726683343952,2.9373,131.06,130.92,38.39]
[1726683343953,38.39,131.03,130.92,38.39]
[1726683344158,38.39,131.01,130.89,38.39]
[1726683344360,61.46,131.05,130.87,38.39]
[1726683344361,38.39,130.98,130.87,38.39]
[1726683344662,1.4505,131.02,130.81,7.6431]
[1726683344663,2.9825,130.97,130.81,38.39]
[1726683344857,38.39,130.9,130.78,345.3286]
[1726683345059,38.39,130.9,130.81,3.8215]
[1726683345258,42.28312527,130.9,130.78,345.3286]
[1726683345563,2.9825,130.89,130.78,345.3286]
[1726683345864,38.39,130.96,130.82,38.39]
[1726683346057,38.39,130.96,130.78,345.3286]
[1726683346058,38.39,130.89,130.8,3.8219]
[1726683346366,38.39,130.89,130.78,345.3286]
[1726683346367,3.86950745,130.89,130.78,345.3286]
[1726683346561,3.8207,130.85,130.8,3.8219]
[1726683346768,5.2012826,130.9,130.8,38.39]
[1726683347161,38.39,130.87,130.78,306.9386]
[1726683347662,2.9207,130.86,130.78,306.9386]
[1726683347856,2.9207,130.86,130.78,345.3286]
[1726683348761,2.9207,130.86,130.8,3.8218]
[1726683348762,3.8206,130.85,130.8,3.8218]
[1726683348959,2.9207,130.86,130.78,345.3286]
[1726683349365,6.7412,130.86,130.78,345.3286]
[1726683349558,5.2012826,130.9,130.8,38.39]
[1726683349758,3.8195,130.89,130.84,3.8208]
[1726683349958,5.2012826,130.9,130.82,38.39]
[1726683350161,1.4377,130.9,130.82,38.39]
[1726683350357,3.8196,130.89,130.84,3.8206]
[1726683350561,1.4377,130.9,130.82,38.39]
[1726683350763,38.39,130.94,130.82,38.39]
[1726683350968,1.4057,130.95,130.85,38.39]
[1726683351156,1.4057,130.95,130.87,38.39]
[1726683352254,2.9207,130.96,130.89,38.39]
[1726683352664,2.9207,130.96,130.85,38.39]
[1726683352665,38.39,131.03,130.91,38.39]
[1726683352867,2.8982,131.02,130.91,38.39]
[1726683353655,2.8982,131.02,130.87,42.2099]
[1726683353656,3.8188,130.91,130.87,42.2099]
[1726683353859,3.91614125,130.92,130.82,38.39]
[1726683354067,38.39,130.94,130.82,38.39]
[1726683354270,2.8982,130.93,130.82,38.39]
[1726683354868,2.8982,130.93,130.78,306.9386]
[1726683354869,2.8982,130.93,130.84,38.39]
[1726683355667,3.8187,130.92,130.88,3.8195]
[1726683355861,38.39,130.98,130.86,38.39]
[1726683356168,11.43498576,131.06,130.85,38.39]
[1726683356169,3.8173,130.96,130.92,3.8185]
[1726683356367,6.7346852,130.99,130.91,38.39]
[1726683357366,3.8172,130.97,130.93,3.818]
[1726683357666,2.9541,130.99,130.91,38.39]
[1726683357866,3.8166,130.99,130.93,38.39]
[1726683358069,41.3441,131.05,130.93,38.39]
[1726683358268,3.8169,130.98,130.94,3.8177]
[1726683358469,41.3441,131.05,130.93,38.39]
[1726683358767,38.39,131.01,130.89,38.39]
[1726683360361,38.39,131.01,130.79,7.6446]
[1726683360362,38.39,131.03,130.91,38.39]
[1726683360964,3.8169,130.98,130.91,38.39]
[1726683361166,38.39,131.03,130.91,38.39]
[1726683361365,41.3441,131.05,130.93,38.39]
[1726683361958,41.3441,131.05,130.97,3.817]
[1726683362162,3.80490554,131.07,130.98,38.39]
[1726683362472,3.91137352,131.08,131.02,3.8156]
[1726683362767,3.91137352,131.08,130.98,38.39]
[1726683362768,38.39,131.09,130.98,38.39]
[1726683362977,2.9116,131.1,131.0,38.39]
[1726683363358,2.9116,131.1,130.99,3.8164]
[1726683363359,3.8158,131.02,130.99,3.8164]
[1726683363563,3.8158,131.02,130.89,7.6388]
[1726683363564,3.76241974,131.04,130.94,38.39]
[1726683364169,2.9116,131.1,130.94,38.39]
[1726683364366,41.3016,131.1,130.99,38.39]
[1726683364561,2.9116,131.1,131.01,38.39]
[1726683364762,2.9116,131.1,130.98,38.39]
[1726683364763,41.3016,131.1,130.98,38.39]
[1726683365465,41.3016,131.1,130.92,7.6367]
[1726683365466,3.8138,131.08,131.04,3.8148]
[1726683365773,2.9116,131.1,131.03,38.39]
[1726683365967,38.39,131.15,131.03,38.39]
[1726683366169,41.2751,131.15,131.03,38.39]
[1726683366372,2.8851,131.15,131.05,38.39]
[1726683366776,6.74704865,131.15,131.05,38.39]
[1726683367173,38.39,131.13,131.03,38.39]
[1726683367667,38.39,131.13,131.0,38.39]
[1726683368072,3.8139,131.08,131.04,3.8148]
[1726683368273,38.39,131.13,131.02,38.39]
[1726683368474,6.74704865,131.15,131.05,38.39]
[1726683368475,2.8851,131.15,131.05,38.39]
[1726683368868,41.2751,131.15,131.03,38.39]
[1726683369172,38.39,131.12,131.0,38.39]
[1726683369570,3.8135,131.1,131.06,3.8141]
[1726683369770,38.39,131.12,131.0,38.39]
[1726683370279,38.39,131.08,130.98,38.39]
[1726683370478,38.39,131.06,130.96,152.72]
[1726683370686,38.39,131.01,130.9,38.39]
[1726683370976,38.39,130.97,130.85,38.39]
[1726683371478,3.8187,130.92,130.9,306.47023]
[1726683371676,38.39,130.95,130.9,306.47023]
[1726683371984,3.84973433,130.96,130.9,306.47023]
[1726683372380,1.403,130.98,130.9,310.28913]
[1726683372575,1.403,130.98,130.9,306.47023]
[1726683373080,38.39,130.97,130.9,306.47023]
[1726683373275,3.8184,130.93,130.9,306.47023]
[1726683373480,38.39,130.97,130.9,306.47023]
[1726683373681,4.2224,130.98,130.9,306.47023]
[1726683373873,2.7988,130.98,130.9,306.47023]
[1726683374176,38.39,131.01,130.91,38.39]
[1726683374385,38.39,130.93,130.9,306.47023]
[1726683374573,3.0,131.0,130.9,306.47023]
[1726683374970,42.30389865,131.0,130.9,306.47023]
[1726683375173,2.9314,131.04,130.96,38.39]
[1726683375580,41.3214,131.04,130.94,38.39]
[1726683375879,3.75373423,131.03,130.91,38.39]
[1726683376084,38.39,131.02,130.91,38.39]
[1726683376389,38.39,130.97,130.9,306.47023]
[1726683376577,42.2063,131.0,130.93,3.8181]
[1726683376777,3.8163,131.0,130.93,3.8181]
[1726683376973,41.3214,131.04,130.91,38.39]
[1726683377273,38.39,130.95,130.9,306.47023]
[1726683378177,38.39,131.0,130.92,3.8185]
[1726683378373,2.9314,131.04,130.9,306.47023]
[1726683378570,38.39,130.96,130.9,306.47023]
[1726683378779,3.8181,130.94,130.9,306.47023]
[1726683378974,38.39,130.94,130.9,306.47023]
[1726683379386,3.818,130.94,130.9,306.47023]
[1726683379572,38.39,130.98,130.9,306.47023]
[1726683379977,38.39,130.94,130.9,306.47023]
[1726683380681,39.7827,130.98,130.9,306.47023]
[1726683380882,3.8168,130.98,130.92,3.8185]
[1726683381087,38.39,131.03,130.91,38.39]
[1726683381382,6.7466,131.04,130.96,3.8171]
[1726683381582,2.9314,131.04,130.93,38.39]
[1726683381883,38.39,131.07,130.96,38.39]
[1726683382289,3.8143,131.07,130.98,38.39]
[1726683382583,38.39,131.07,130.96,38.39]
[1726683383184,38.39,131.12,131.0,38.39]
[1726683383384,1.428,131.15,131.02,38.39]
[1726683383385,3.80626816,131.13,131.02,38.39]
[1726683383586,41.3123,131.14,131.02,38.39]
[1726683383786,3.87771688,131.13,131.02,42.2053]
[1726683384095,41.3123,131.14,130.91,191.15]
[1726683384096,38.39,131.12,131.0,38.39]
[1726683384290,3.8139,131.08,131.0,38.39]
[1726683384592,38.39,131.12,131.0,38.39]
[1726683385180,140.45414393,131.64,130.98,38.39]
[1726683385181,38.39,131.16,131.04,38.39]
[1726683385384,152.76,131.24,131.08,3.8138]
[1726683385385,42.22675456,131.18,131.08,3.8138]
[1726683385881,38.39,131.18,131.06,38.39]
[1726683386092,3.85584099,131.17,131.06,38.39]
[1726683386391,38.39,131.16,131.04,38.39]
[1726683386590,38.39,131.12,131.02,38.39]
[1726683386797,38.39,131.12,130.99,38.39]
[1726683387004,3.8145,131.06,131.0,3.8161]
[1726683387505,3.8152,131.04,130.97,3.8169]
[1726683387709,38.39,131.04,130.93,38.39]
[1726683388008,38.39,131.07,130.93,38.39]
[1726683388201,3.8148,131.05,130.98,38.39]
[1726683388402,41.3769,131.09,130.98,38.39]
[1726683388706,1.4705,131.09,130.98,38.39]
[1726683389100,3.8145,131.06,131.0,3.8161]
[1726683389299,38.39,131.07,130.96,38.39]
[1726683389501,5.36709376,131.09,130.92,38.39]
[1726683389502,38.39,131.04,130.92,38.39]
[1726683389701,38.39,131.02,130.91,152.76]
[1726683390203,38.39,131.02,130.92,3.8185]
[1726683390399,38.39,131.02,130.91,152.76]
[1726683390803,3.817,130.98,130.92,3.8183]
[1726683391004,39.777,131.04,130.92,38.39]
[1726683391200,39.777,131.04,130.94,38.39]
[1726683391402,39.777,131.04,130.92,38.39]
[1726683391807,38.39,131.02,130.92,38.39]
[1726683392310,39.777,131.04,130.97,3.817]
[1726683392507,5.36709376,131.09,130.94,38.39]
[1726683392508,38.39,131.06,130.94,38.39]
[1726683392706,38.39,131.06,130.96,38.39]
[1726683393005,38.39,131.06,130.91,38.39]
[1726683393006,1.4705,131.09,131.0,38.39]
[1726683393209,1.4347,131.11,131.03,38.39]
[1726683393414,1.4347,131.11,131.05,3.8147]
[1726683393415,3.8136,131.09,131.05,3.8147]
[1726683393713,2.8287,131.15,131.03,38.39]
[1726683394015,38.39,131.11,131.0,38.39]
[1726683394603,38.39,131.09,130.98,38.39]
[1726683394808,38.39,131.09,130.96,38.39]
[1726683394809,42.2215887,131.09,130.96,38.39]
[1726683395015,3.815,131.04,131.0,3.8161]
[1726683395208,38.39,131.07,130.96,38.39]
[1726683395609,3.8153,131.04,130.96,38.39]
[1726683395815,38.39,131.07,130.96,38.39]
[1726683396012,3.8149,131.05,131.01,3.8157]
[1726683396310,38.39,131.09,130.98,38.39]
[1726683396513,38.39,131.09,130.91,38.39]
[1726683396514,3.8139,131.08,131.0,38.39]
[1726683396712,1.4834,131.1,131.0,38.39]
[1726683397813,38.39,131.14,131.03,38.39]
[1726683398214,38.39,131.14,131.04,3.8148]
[1726683398420,38.39,131.14,131.03,38.39]
[1726683399324,38.39,131.12,131.0,38.39]
[1726683399913,38.39,131.14,131.02,38.39]
[1726683401015,38.39,131.14,131.06,3.8142]
[1726683401016,3.8134,131.1,131.06,3.8142]
[1726683401322,3.8134,131.1,131.02,38.39]
[1726683401323,38.39,131.14,131.02,38.39]
[1726683401512,4.2846,131.15,131.02,38.39]
[1726683401819,38.39,131.13,131.02,38.39]
[1726683402013,38.39,131.13,131.03,3.8151]
[1726683402213,38.39,131.11,131.0,38.39]
[1726683402616,38.39,131.13,131.02,38.39]
[1726683403416,42.6746,131.15,131.02,38.39]
[1726683403613,3.8131,131.11,131.02,38.39]
[1726683404023,42.6746,131.15,131.05,38.39]
[1726683404213,3.8129,131.12,131.05,38.39]
[1726683404523,41.2475,131.15,131.05,38.39]
[1726683404524,2.8575,131.15,131.05,38.39]
[1726683404819,2.8575,131.15,131.08,3.8136]
[1726683404820,3.8125,131.13,131.08,3.8136]
[1726683405017,6.5849898,131.15,131.05,38.39]
[1726683405221,41.2475,131.15,131.05,38.39]
[1726683405516,3.8124,131.13,131.09,3.8133]
[1726683405722,38.39,131.18,131.07,38.39]
[1726683405911,3.8123,131.14,131.07,38.39]
[1726683406608,6.73693251,131.19,131.07,38.39]
[1726683407014,6.73693251,131.19,131.11,3.8128]
[1726683407220,6.73693251,131.19,131.07,38.39]
[1726683407221,38.39,131.18,131.07,38.39]
[1726683407414,38.39,131.18,131.04,38.39]
[1726683407415,6.73693251,131.19,131.04,38.39]
[1726683407608,6.73693251,131.19,131.08,38.39]
[1726683407812,6.73693251,131.19,131.0,7.6322]
[1726683407813,38.39,131.18,131.06,38.39]
[1726683408014,38.39,131.15,131.07,3.8141]
[1726683408314,38.39,131.15,131.04,38.39]
[1726683408512,3.813,131.11,131.07,3.814]
[1726683408714,38.39,131.15,131.04,38.39]
[1726683409121,3.8125,131.13,131.09,3.8134]
[1726683409321,6.73693251,131.19,131.04,38.39]
[1726683409621,38.39,131.14,131.01,191.07]
[1726683409925,38.39,131.14,131.03,38.39]
[1726683410110,6.73693251,131.19,131.08,38.39]
[1726683410809,3.8117,131.16,131.11,3.8129]
[1726683411017,6.73693251,131.19,131.11,3.8129]
[1726683411213,3.8118,131.16,131.11,3.8127]
[1726683411420,2.9251,131.19,131.1,38.39]
[1726683411610,2.9251,131.19,131.12,38.39]
[1726683411818,5.3221,131.19,131.14,3.8121]
[1726683412225,3.8114,131.17,131.1,38.39]
[1726683412526,1.5114,131.19,131.1,38.39]
[1726683413122,3.8114,131.17,131.12,3.8125]
[1726683413727,3.8115,131.16,131.12,3.8125]